fUSD/lending_fUSD_20260318
["ID","MTS","AMOUNT","RATE_DAILY","PERIOD"]
[408525648,1773826231604,-181.95370885,0.00015285,2]
[408525649,1773826231613,-151.0,0.00015285,2]
[408525650,1773826231622,-255.0,0.0001539,2]
[408525651,1773826231633,-268.1075023,0.00015391,2]
[408525652,1773826231643,-1377.06999647,0.00015391,2]
[408525654,1773826231653,-500.0,0.00015391,2]
[408525656,1773826231663,-500.0,0.00015391,2]
[408525657,1773826231672,-750.0,0.00015391,2]
[408525658,1773826231682,-500.0,0.00015391,2]
[408525659,1773826231695,-250.0,0.00015391,2]
[408525660,1773826231704,-500.0,0.00015391,2]
[408525661,1773826231713,-200.0,0.00015391,2]
[408525662,1773826231723,-250.0,0.00015391,2]
[408525664,1773826231733,-250.0,0.00015391,2]
[408525666,1773826231742,-274.1930115,0.00015391,2]
[408525668,1773826231752,-387.50682198,0.00015391,2]
[408525670,1773826231762,-151.0,0.00015391,2]
[408525671,1773826231772,-151.0,0.00015391,2]
[408525672,1773826231782,-201.04041191,0.00015391,2]
[408525674,1773826231792,-500.0,0.00015391,2]
[408525676,1773826231802,-500.0,0.00015391,2]
[408525678,1773826231812,-500.0,0.00015391,2]
[408525679,1773826231821,-500.0,0.00015391,2]
[408525680,1773826231831,-500.0,0.00015391,2]
[408525681,1773826231841,-500.0,0.00015391,2]
[408525682,1773826231850,-500.0,0.00015391,2]
[408525683,1773826231859,-500.0,0.00015391,2]
[408525684,1773826231869,-500.0,0.00015391,2]
[408525685,1773826231878,-500.0,0.00015391,2]
[408525686,1773826231887,-500.0,0.00015391,2]
[408525687,1773826231897,-500.0,0.00015391,2]
[408525688,1773826231906,-500.0,0.00015391,2]
[408525689,1773826231916,-28042.88942511,0.000154,2]
[408525690,1773826231925,-2000.0,0.00015456,2]
[408525691,1773826231934,-504.25347756,0.00015456,2]
[408525692,1773826231945,-166.66,0.00015528,2]
[408525693,1773826231954,-2390.81,0.00015604,2]
[408525694,1773826231963,-265.0,0.00015754,2]
[408525695,1773826231973,-637.0,0.00015761,2]
[408525696,1773826231982,-2000.0,0.000158,2]
[408525697,1773826231992,-637.0,0.00015826,2]
[408525698,1773826232001,-166.66,0.00015829,2]
[408525699,1773826232010,-637.0,0.00015886,2]
[408525700,1773826232019,-2734.852,0.00015893,2]
[408525701,1773826232028,-2006.4101,0.000159,2]
[408525702,1773826232037,-172.086,0.000159,2]
[408525703,1773826232046,-2338.0,0.000159,2]
[408525704,1773826232054,-2390.81,0.00015994,2]
[408525705,1773826232063,-11380.058,0.00015997,2]
[408525706,1773826232073,-610.056,0.00016,2]
[408525707,1773826232081,-2762.04134677,0.00016,2]
[408525708,1773826232090,-2500.0,0.00016,2]
[408525709,1773826232100,-2174.9497,0.00016015,2]
[408525710,1773826232109,-256.73,0.00016032,2]
[408525711,1773826232118,-265.0,0.00016085,2]
[408525712,1773826232127,-300.0,0.00016088,2]
[408525713,1773826232136,-1260.0,0.00016097,2]
[408525714,1773826232144,-923.0,0.00016097,2]
[408525715,1773826232153,-1215.0,0.00016097,2]
[408525716,1773826232163,-6005.0,0.00016097,2]
[408525717,1773826232173,-2465.0,0.00016097,2]
[408525718,1773826232182,-500.0,0.00016097,2]
[408525719,1773826232191,-500.0,0.00016097,2]
[408525720,1773826232199,-500.0,0.00016097,2]
[408525721,1773826232209,-150.37503432,0.00016097,2]
[408525722,1773826232218,-500.0,0.00016097,2]
[408525723,1773826232227,-500.0,0.00016097,2]
[408525724,1773826232235,-550.79970363,0.00016097,2]
[408525725,1773826232244,-500.0,0.00016097,2]
[408525726,1773826232253,-500.0,0.00016097,2]
[408525727,1773826232262,-597.01723179,0.00016097,2]
[408525728,1773826232271,-1561.2259581,0.00016099,2]
[408525729,1773826232280,-5834.6880573,0.00016099,2]
[408525730,1773826232288,-88441.52587308,0.000161,2]
[408525731,1773826232300,-31570.59485227,0.000161,2]
[408525732,1773826232318,-1097.89225197,0.000161,2]
[408525733,1773826232329,-11108.45347406,0.000161,2]
[408525734,1773826232339,-9412.5,0.000161,2]
[408525735,1773826232350,-255.51004428,0.000161,2]
[408525736,1773826233446,748.280214,0.0003,120]
[408525739,1773826239240,748.280214,0.0003,120]
[408525767,1773826242398,-220.27721903,0.00012502,2]
[408525768,1773826242407,-414.0,0.00016097,2]
[408525769,1773826242416,-1522.19108557,0.000161,2]
[408525770,1773826242452,-3244.72416054,0.000161,2]
[408525771,1773826242463,-36685.03746501,0.000161,2]
[408525772,1773826242471,-150.0,0.000161,2]
[408525773,1773826242480,-2279.52527953,0.000161,2]
[408525774,1773826242569,-108.8797808,0.000161,2]
[408525776,1773826245337,-2072.54365153,0.000161,2]
[408525777,1773826245392,-11325.957602,0.000161,2]
[408525778,1773826245661,-5661.74020266,0.000161,2]
[408525779,1773826245672,-270.87503722,0.000161,2]
[408525780,1773826245682,-200.0,0.000161,2]
[408525781,1773826245691,-152.72588312,0.000161,2]
[408525782,1773826245700,-500.0,0.000161,2]
[408525783,1773826245710,-500.0,0.000161,2]
[408525785,1773826245719,-55.65124745,0.000161,2]
[408525786,1773826245731,-444.34875255,0.000161,2]
[408525787,1773826245740,-500.0,0.000161,2]
[408525788,1773826245750,-500.0,0.000161,2]
[408525789,1773826245759,-500.0,0.000161,2]
[408525790,1773826245769,-500.0,0.000161,2]
[408525792,1773826245778,-500.0,0.000161,2]
[408525793,1773826245787,-500.0,0.000161,2]
[408525794,1773826245796,-263.04979028,0.000161,2]
[408525795,1773826245879,748.280214,0.0003,120]
[408525796,1773826253598,170.93,0.0003,120]
[408525797,1773826257440,748.280214,0.0003,120]
[408525798,1773826263082,748.280214,0.0003,120]
[408525799,1773826269572,748.280214,0.0003,120]
[408525800,1773826275614,748.280214,0.000301,120]
[408525801,1773826299283,748.280214,0.0003,120]
[408525802,1773826315964,748.280214,0.0003,120]
[408525803,1773826321885,748.280214,0.0003,120]
[408525804,1773826327266,748.280214,0.0003,120]
[408525805,1773826340351,748.280214,0.0003,120]
[408525806,1773826342298,748.280214,0.0003,120]
[408525807,1773826346668,748.280214,0.0003,120]
[408525808,1773826353037,748.280214,0.0003,120]
[408525809,1773826359146,748.280214,0.0003,120]
[408525810,1773826366853,748.280214,0.0003,120]
[408525811,1773826371621,748.280214,0.0003,120]
[408525812,1773826931224,600.0,0.000301,120]
[408525813,1773827051136,200.0,0.00030137,120]
[408525814,1773827073689,441.44,0.00030137,120]
[408525815,1773827090296,204.5,0.00030137,120]
[408525816,1773827104068,3126.05,0.00030137,120]
[408525817,1773827118512,1563.02,0.00030137,120]
[408525820,1773827130814,781.51,0.00030137,120]
[408525821,1773827142117,390.76,0.00030137,120]
[408525822,1773827155994,390.75,0.00030137,120]
[408525828,1773827431984,-521.22781756,0.00013844,2]
[408525829,1773827431994,-95.15826341,0.00014842,2]
[408525830,1773827432005,-104.84173659,0.00014842,2]
[408525831,1773827432015,-1200.0,0.0001487,2]
[408525832,1773827432025,-4623.80547982,0.00014871,2]
[408525833,1773827432036,-296.369996,0.00014871,2]
[408525834,1773827432094,-895.86861586,0.00014871,2]
[408525855,1773827437567,-2366.46590832,0.00014871,2]
[408525856,1773827437576,-600.0,0.000149,5]
[408525857,1773827437585,-397.1816898,0.00014994,2]
[408525858,1773827437596,-1790.6993102,0.00014994,2]
[408525859,1773827437605,-172.086,0.00014994,2]
[408525860,1773827437614,-250.0,0.00015,2]
[408525866,1773827437829,-1852.42,0.00015042,2]
[408525868,1773827437838,-3028.04595265,0.0001521,2]
[408525870,1773827437849,-2277.23912975,0.0001521,2]
[408525872,1773827437858,-2620.25238986,0.0001521,2]
[408525875,1773827437880,-349.46341076,0.0001521,2]
[408525877,1773827437889,-500.0,0.00015257,2]
[408525879,1773827437898,-167.28,0.00015288,2]
[408525880,1773827437907,-167.66,0.0001529,2]
[408525881,1773827437916,-253.27031371,0.0001529,2]
[408525882,1773827437940,-2544.50968629,0.0001529,2]
[408525883,1773827437949,-2797.78,0.0001529,2]
[408525884,1773827437958,-500.0,0.00015294,2]
[408525885,1773827437968,-328.2782862,0.00015294,2]
[408525886,1773827437978,-776.33,0.00015299,2]
[408525887,1773827437987,-500.0,0.00015299,2]
[408525888,1773827437996,-500.0,0.00015299,2]
[408525889,1773827438005,-466.97084571,0.00015299,2]
[408525890,1773827438014,-500.0,0.00015299,2]
[408525891,1773827438023,-488.51626711,0.00015299,2]
[408525892,1773827438032,-500.0,0.00015299,2]
[408525893,1773827438041,-500.0,0.00015299,2]
[408525894,1773827438050,-500.0,0.00015299,2]
[408525895,1773827438059,-500.0,0.00015299,2]
[408525896,1773827438069,-500.0,0.00015299,2]
[408525897,1773827438083,-500.0,0.00015299,2]
[408525898,1773827438092,-500.0,0.00015299,2]
[408525899,1773827438101,-500.0,0.00015299,2]
[408525900,1773827438110,-500.0,0.00015299,2]
[408525901,1773827438122,-500.0,0.00015299,2]
[408525902,1773827438132,-500.0,0.00015299,2]
[408525903,1773827438141,-500.0,0.00015299,2]
[408525904,1773827438153,-474.99511719,0.00015299,2]
[408525905,1773827438162,-500.0,0.00015299,2]
[408525906,1773827438171,-500.0,0.00015299,2]
[408525907,1773827438180,-500.0,0.00015299,2]
[408525908,1773827438190,-500.0,0.00015299,2]
[408525909,1773827438199,-356.08541449,0.00015299,2]
[408525910,1773827438209,-411.9495389,0.00015299,2]
[408525911,1773827438218,-500.0,0.00015299,2]
[408525912,1773827438227,-280.12452389,0.00015299,2]
[408525913,1773827438236,-500.0,0.00015299,2]
[408525914,1773827438245,-458.99684701,0.00015299,2]
[408525915,1773827438254,-500.0,0.00015299,2]
[408525916,1773827438263,-500.0,0.00015299,2]
[408525917,1773827438272,-334.37345073,0.00015299,2]
[408525918,1773827438281,-186.00814132,0.00015299,2]
[408525919,1773827438291,-559.50847389,0.00015299,2]
[408525920,1773827438301,-337.74702835,0.00015299,2]
[408525921,1773827438310,-403.40376745,0.00015299,2]
[408525922,1773827438319,-500.0,0.00015299,2]
[408525923,1773827438328,-673013.64322838,0.000153,2]
[408525926,1773827439888,-2205.71495633,0.000153,2]
[408525927,1773827440154,-807.438462,0.000153,2]
[408525928,1773827440166,-37808.36663339,0.000153,2]
[408525932,1773827442727,-858.4950199,0.000153,2]
[408525933,1773827442737,-20734.56982055,0.0001531,2]
[408525934,1773827442747,-497.31,0.0001541,2]
[408525935,1773827442757,-2969.71580055,0.00015509,2]
[408525936,1773827442767,-776.33,0.00015573,2]
[408525937,1773827442776,-1978.8465174,0.00015594,2]
[408525939,1773827445578,-3326.43856499,0.00015594,2]
[408525940,1773827445588,-2430.10521501,0.00015598,2]
[408525941,1773827446151,-1189.30802266,0.00015598,2]
[408525942,1773827472708,1000.0,0.00030136,120]
[408525943,1773827648487,-200.0,0.00014871,2]
[408525944,1773827648517,-300.0,0.00015597,2]
[408525946,1773827910513,-737.05,0.00015107,2]
[408525947,1773827910539,-150.0,0.00015108,2]
[408525948,1773827910566,-2000.0,0.00015127,2]
[408525949,1773827910593,-481.0,0.000154,2]
[408525950,1773827910620,-481.0,0.00015407,2]
[408525951,1773827910646,-481.0,0.00015425,2]
[408525952,1773827910673,-214.0,0.00015482,2]
[408525953,1773827910699,-270.87503722,0.00015598,2]
[408525954,1773827910941,-481.0,0.00015729,2]
[408525955,1773827910969,-290.0,0.00015759,2]
[408525956,1773827911127,-4900.29488834,0.00015785,2]
[408525957,1773827911143,-10000.01,0.00015785,2]
[408525958,1773827911185,-10000.01,0.00015785,2]
[408525959,1773827911203,-10000.01,0.00015785,2]
[408525960,1773827911424,-10000.01,0.00015785,2]
[408525961,1773827913443,-10000.01,0.00015785,2]
[408525962,1773827916419,-3191.62288834,0.00015785,2]
[408525963,1773827916441,-3616.76422332,0.00015785,2]
[408525964,1773827994491,1349.99421475,0.0001199,2]
[408525968,1773828071740,-1725.75,0.00012499,2]
[408525969,1773828155674,10000.01,9.5e-05,3]
[408525970,1773828155695,10000.01,9.5e-05,3]
[408525971,1773828155725,10000.01,9.5e-05,3]
[408525972,1773828155753,10000.01,9.5e-05,3]
[408525973,1773828155776,1548.51,9.5e-05,3]
[408525974,1773828155808,436293.89586413,9.5e-05,3]
[408525975,1773828163387,-3932.3979322,0.00015335,2]
[408525976,1773828163613,-2135.2141356,0.00015335,2]
[408525977,1773828163647,-1592.3868938,0.00015341,2]
[408525978,1773828163674,-200.0,0.000154,2]
[408525979,1773828163702,-150.23747724,0.00015685,2]
[408525980,1773828163730,-584.33298672,0.00015737,2]
[408525981,1773828163850,-675.66701328,0.00015737,2]
[408525982,1773828163880,-1215.0,0.00015737,2]
[408525983,1773828163908,-160.0,0.00015785,2]
[408525984,1773828163939,-481.0,0.00015831,2]
[408525985,1773828163968,-290.0,0.00015868,2]
[408525986,1773828294571,-1460.88693413,0.00015337,2]
[408525987,1773828294603,-10000.01,0.00015337,2]
[408525988,1773828294708,-10000.01,0.00015337,2]
[408525989,1773828297577,-10000.01,0.00015337,2]
[408525990,1773828300721,-2917.68123787,0.00015337,2]
[408525991,1773828418283,4000.0,0.00030137,120]
[408525992,1773828427167,500.0,0.0003013,120]
[408525993,1773828448780,150.0,0.00030136,120]
[408526015,1773828631691,-166.66,0.00014352,2]
[408526017,1773828631701,-195.0,0.00014503,2]
[408526019,1773828631710,-166.66,0.00014654,2]
[408526020,1773828631719,-166.66,0.00014956,2]
[408526021,1773828631728,-250.0,0.00015,2]
[408526022,1773828631737,-166.66,0.00015258,2]
[408526023,1773828631746,-2234.4096743,0.00015337,2]
[408526024,1773828631756,-3146.9543234,0.00015337,2]
[408526025,1773828631766,-166.66,0.0001556,2]
[408526026,1773828631776,-316.0,0.00015784,2]
[408526027,1773828631787,-195.0,0.00015787,2]
[408526028,1773828631796,-166.66,0.00015863,2]
[408526029,1773828631806,-1520.0,0.00015868,2]
[408526030,1773828631815,-498.90495935,0.00015868,2]
[408526031,1773828631826,-644.71052742,0.00015868,2]
[408526032,1773828631837,-376.38451323,0.00015868,2]
[408526033,1773828631847,-162.25845006,0.00015868,2]
[408526034,1773828631856,-225.710787,0.00015868,2]
[408526035,1773828631875,-253.91423836,0.00015868,2]
[408526036,1773828631886,-1040.37497464,0.00015868,2]
[408526037,1773828631895,-177.02945772,0.00015868,2]
[408526038,1773828631907,-843.33708973,0.00015868,2]
[408526040,1773828631922,-499.63345255,0.00015868,2]
[408526041,1773828631931,-1520.0,0.00015868,2]
[408526042,1773828631939,-728.41946892,0.00015868,2]
[408526043,1773828631950,-791.58053108,0.00015868,2]
[408526044,1773828631959,-1520.0,0.00015868,2]
[408526045,1773828631969,-1520.0,0.00015868,2]
[408526046,1773828631978,-1520.0,0.00015868,2]
[408526047,1773828631988,-1520.0,0.00015868,2]
[408526048,1773828631997,-1520.0,0.00015868,2]
[408526049,1773828632006,-1520.0,0.00015868,2]
[408526050,1773828632015,-1520.0,0.00015868,2]
[408526051,1773828632024,-1520.0,0.00015868,2]
[408526052,1773828632034,-1520.0,0.00015868,2]
[408526053,1773828632043,-1520.0,0.00015868,2]
[408526054,1773828632052,-1520.0,0.00015868,2]
[408526055,1773828632061,-1520.0,0.00015868,2]
[408526056,1773828632071,-1520.0,0.00015868,2]
[408526057,1773828632080,-1296.10452817,0.00015868,2]
[408526058,1773828632090,-168.0,0.0001588,2]
[408526059,1773828632099,-2000.0,0.0001589,2]
[408526060,1773828632109,-371.2713,0.000159,2]
[408526061,1773828632118,-6041.0158438,0.000159,2]
[408526062,1773828632128,-290.0,0.00015924,2]
[408526063,1773828632137,-150.0,0.00015967,2]
[408526064,1773828632147,-148782.7016,0.00015968,2]
[408526065,1773828632157,-1750.305,0.00016,2]
[408526066,1773828632166,-172.087,0.00016,2]
[408526067,1773828632175,-168.0,0.0001605,2]
[408526068,1773828632184,-923.0,0.00016073,2]
[408526069,1773828632193,-1215.0,0.00016073,2]
[408526070,1773828632204,-6005.0,0.00016073,2]
[408526071,1773828632214,-2465.0,0.00016073,2]
[408526072,1773828632223,-152.72588312,0.00016086,2]
[408526073,1773828632232,-9999.99,0.00016086,2]
[408526074,1773828632240,-150.0,0.00016097,2]
[408526075,1773828632250,-1344.0,0.00016097,2]
[408526076,1773828632259,-1052.763,0.00016097,2]
[408526077,1773828632268,-621.696,0.00016097,2]
[408526078,1773828632277,-500.0,0.00016097,2]
[408526079,1773828632286,-155.6385228,0.00016097,2]
[408526080,1773828632296,-155.556,0.00016099,2]
[408526081,1773828632305,-1894.08,0.00016099,2]
[408526082,1773828632315,-500.0,0.00016099,2]
[408526083,1773828632324,-1321.0,0.000161,5]
[408526084,1773828632333,-150.0,0.000161,2]
[408526085,1773828632342,-5511.74020266,0.000161,2]
[408526086,1773828632353,-1000.0,0.000161,2]
[408526087,1773828632362,-500.0,0.000161,2]
[408526088,1773828632371,-500.0,0.000161,2]
[408526089,1773828632381,-500.0,0.000161,2]
[408526090,1773828632390,-500.0,0.000161,2]
[408526091,1773828632399,-500.0,0.000161,2]
[408526092,1773828632409,-500.0,0.000161,2]
[408526093,1773828632421,-500.0,0.000161,2]
[408526094,1773828632431,-500.0,0.000161,2]
[408526095,1773828632439,-500.0,0.000161,2]
[408526096,1773828632449,-500.0,0.000161,2]
[408526097,1773828632459,-500.0,0.000161,2]
[408526098,1773828632467,-500.0,0.000161,2]
[408526099,1773828632477,-500.0,0.000161,2]
[408526100,1773828632488,-500.0,0.000161,2]
[408526101,1773828632499,-500.0,0.000161,2]
[408526102,1773828632509,-500.0,0.000161,2]
[408526103,1773828632518,-500.0,0.000161,2]
[408526104,1773828632527,-500.0,0.000161,2]
[408526105,1773828632536,-500.0,0.000161,2]
[408526106,1773828632546,-595.0,0.000161,2]
[408526107,1773828632556,-944.0,0.000161,2]
[408526108,1773828632565,-844.0,0.000161,2]
[408526109,1773828632575,-1000.0,0.000161,2]
[408526110,1773828632583,-1000.0,0.000161,2]
[408526111,1773828632593,-1000.0,0.000161,2]
[408526112,1773828632602,-1000.0,0.000161,2]
[408526113,1773828632612,-350.798,0.000161,2]
[408526114,1773828632621,-158.54909,0.000161,2]
[408526115,1773828632629,-158.54908,0.000161,2]
[408526116,1773828632638,-158.54908,0.000161,2]
[408526117,1773828632647,-158.54909,0.000161,2]
[408526118,1773828632656,-158.54909,0.000161,2]
[408526119,1773828632665,-158.54908,0.000161,2]
[408526120,1773828632674,-500.0,0.000161,2]
[408526121,1773828632683,-556.0,0.000161,2]
[408526122,1773828632692,-699.45,0.00016101,2]
[408526123,1773828632701,-4041.99950883,0.00016111,2]
[408526124,1773828632710,-18418.10231703,0.00016111,2]
[408526125,1773828632720,-290.0,0.00016112,2]
[408526126,1773828632729,-6041.01584372,0.00016122,2]
[408526127,1773828632739,-167.28,0.00016129,2]
[408526128,1773828632748,-538.04003596,0.00016142,2]
[408526129,1773828632758,-500.0,0.00016144,2]
[408526130,1773828632767,-500.0,0.00016151,2]
[408526131,1773828632776,-166.66,0.00016156,2]
[408526132,1773828632785,-699.16585212,0.00016165,2]
[408526133,1773828632794,-2500.0,0.0001618,2]
[408526134,1773828632803,-497.31,0.0001618,2]
[408526135,1773828632813,-637.0,0.0001619,2]
[408526136,1773828632822,-500.0,0.00016199,2]
[408526137,1773828632832,-500.0,0.00016199,2]
[408526138,1773828632841,-5000.00301943,0.000162,5]
[408526139,1773828632850,-500.0,0.0001621,2]
[408526140,1773828632860,-500.0,0.00016211,2]
[408526141,1773828632869,-500.0,0.00016211,2]
[408526142,1773828632878,-500.0,0.00016211,2]
[408526143,1773828632887,-500.0,0.00016211,2]
[408526144,1773828632897,-500.0,0.00016211,2]
[408526145,1773828632906,-500.0,0.00016211,2]
[408526146,1773828632915,-500.0,0.00016211,2]
[408526147,1773828632923,-500.0,0.00016211,2]
[408526148,1773828632932,-500.0,0.00016211,2]
[408526149,1773828632941,-500.0,0.00016211,2]
[408526150,1773828632949,-500.0,0.00016211,2]
[408526151,1773828632958,-500.0,0.00016211,2]
[408526152,1773828632967,-500.0,0.00016211,2]
[408526153,1773828632977,-500.0,0.00016211,2]
[408526154,1773828632988,-500.0,0.00016211,2]
[408526155,1773828632998,-500.0,0.00016211,2]
[408526156,1773828633007,-500.0,0.00016211,2]
[408526157,1773828633016,-500.0,0.00016211,2]
[408526158,1773828633025,-500.0,0.00016211,2]
[408526159,1773828633033,-500.0,0.00016211,2]
[408526160,1773828633042,-500.0,0.00016211,2]
[408526161,1773828633051,-500.0,0.00016211,2]
[408526162,1773828633059,-500.0,0.00016211,2]
[408526163,1773828633068,-500.0,0.00016211,2]
[408526164,1773828633078,-500.0,0.00016211,2]
[408526165,1773828633087,-500.0,0.00016211,2]
[408526166,1773828633097,-500.0,0.00016211,2]
[408526167,1773828633106,-500.0,0.00016211,2]
[408526168,1773828633115,-500.0,0.00016211,2]
[408526169,1773828633124,-500.0,0.00016211,2]
[408526170,1773828633134,-500.0,0.00016211,2]
[408526171,1773828633142,-500.0,0.00016211,2]
[408526172,1773828633151,-500.0,0.00016211,2]
[408526173,1773828633160,-500.0,0.00016211,2]
[408526174,1773828633168,-500.0,0.00016211,2]
[408526175,1773828633177,-500.0,0.00016211,2]
[408526176,1773828633186,-500.0,0.00016211,2]
[408526177,1773828633195,-500.0,0.00016211,2]
[408526178,1773828633204,-500.0,0.00016211,2]
[408526179,1773828633213,-786.0,0.00016211,2]
[408526180,1773828633224,-500.0,0.00016211,2]
[408526181,1773828633233,-500.0,0.00016211,2]
[408526182,1773828633243,-500.0,0.00016211,2]
[408526183,1773828633253,-500.0,0.00016211,2]
[408526184,1773828633262,-500.0,0.00016211,2]
[408526185,1773828633271,-520.0,0.00016211,2]
[408526186,1773828633280,-500.0,0.00016211,2]
[408526187,1773828633290,-500.0,0.00016211,2]
[408526188,1773828633299,-500.0,0.00016211,2]
[408526189,1773828633308,-500.0,0.00016211,2]
[408526190,1773828633317,-749.0,0.00016211,2]
[408526191,1773828633327,-500.0,0.00016211,2]
[408526192,1773828633336,-500.0,0.00016211,2]
[408526193,1773828633346,-500.0,0.00016211,2]
[408526194,1773828633355,-500.0,0.00016211,2]
[408526195,1773828633364,-500.0,0.00016211,2]
[408526196,1773828633373,-500.0,0.00016211,2]
[408526197,1773828633383,-500.0,0.00016211,2]
[408526198,1773828633392,-500.0,0.00016211,2]
[408526199,1773828633402,-500.0,0.00016211,2]
[408526200,1773828633414,-500.0,0.00016211,2]
[408526201,1773828633424,-500.0,0.00016211,2]
[408526202,1773828633434,-500.0,0.00016211,2]
[408526203,1773828633443,-500.0,0.00016211,2]
[408526204,1773828633453,-500.0,0.00016211,2]
[408526205,1773828633463,-500.0,0.00016211,2]
[408526206,1773828633472,-500.0,0.00016211,2]
[408526207,1773828633482,-500.0,0.00016211,2]
[408526208,1773828633492,-500.0,0.00016211,2]
[408526209,1773828633501,-500.0,0.00016211,2]
[408526210,1773828633511,-500.0,0.00016211,2]
[408526211,1773828633520,-500.0,0.00016211,2]
[408526212,1773828633529,-500.0,0.00016211,2]
[408526213,1773828633539,-500.0,0.00016211,2]
[408526214,1773828633548,-500.0,0.00016211,2]
[408526215,1773828633556,-500.0,0.00016211,2]
[408526216,1773828633732,-500.0,0.00016211,2]
[408526217,1773828633742,-500.0,0.00016211,2]
[408526218,1773828633752,-500.0,0.00016211,2]
[408526219,1773828633761,-500.0,0.00016211,2]
[408526220,1773828633771,-500.0,0.00016211,2]
[408526221,1773828633780,-500.0,0.00016211,2]
[408526222,1773828633789,-500.0,0.00016211,2]
[408526223,1773828633798,-500.0,0.00016211,2]
[408526224,1773828633807,-500.0,0.00016211,2]
[408526225,1773828633816,-500.0,0.00016211,2]
[408526226,1773828633825,-500.0,0.00016211,2]
[408526227,1773828633834,-500.0,0.00016211,2]
[408526228,1773828633844,-500.0,0.00016211,2]
[408526229,1773828633853,-500.0,0.00016211,2]
[408526230,1773828633863,-500.0,0.00016211,2]
[408526231,1773828633872,-500.0,0.00016211,2]
[408526232,1773828633882,-500.0,0.00016211,2]
[408526233,1773828633891,-500.0,0.00016211,2]
[408526234,1773828633900,-500.0,0.00016211,2]
[408526235,1773828633910,-500.0,0.00016211,2]
[408526236,1773828633919,-500.0,0.00016211,2]
[408526237,1773828633928,-500.0,0.00016211,2]
[408526238,1773828633937,-500.0,0.00016211,2]
[408526239,1773828633946,-500.0,0.00016211,2]
[408526240,1773828633955,-500.0,0.00016211,2]
[408526241,1773828633964,-500.0,0.00016211,2]
[408526242,1773828633974,-500.0,0.00016211,2]
[408526243,1773828633983,-500.0,0.00016211,2]
[408526244,1773828633992,-500.0,0.00016211,2]
[408526245,1773828634001,-500.0,0.00016211,2]
[408526246,1773828634010,-500.0,0.00016211,2]
[408526247,1773828634020,-500.0,0.00016211,2]
[408526248,1773828634029,-500.0,0.00016211,2]
[408526249,1773828634039,-500.0,0.00016211,2]
[408526250,1773828634048,-500.0,0.00016211,2]
[408526251,1773828634058,-500.0,0.00016211,2]
[408526252,1773828634067,-500.0,0.00016211,2]
[408526253,1773828634077,-500.0,0.00016211,2]
[408526254,1773828634088,-500.0,0.00016211,2]
[408526255,1773828634097,-500.0,0.00016211,2]
[408526256,1773828634106,-500.0,0.00016211,2]
[408526257,1773828634115,-500.0,0.00016211,2]
[408526258,1773828634124,-500.0,0.00016211,2]
[408526259,1773828634133,-500.0,0.00016211,2]
[408526260,1773828634143,-500.0,0.00016211,2]
[408526261,1773828634153,-500.0,0.00016211,2]